[Event "*** Titled Tuesday Blitz"]
[Site "Chess.com"]
[Date "2020.11.24"]
[Round "6"]
[White "SARGISMV"]
[Black "PavelShkapenko"]
[Result "0-1"]
[WhiteElo "2502"]
[BlackElo "2685"]
[TimeControl "180+1"]
[EndTime "11:25:09 PST"]
[Termination "PavelShkapenko won on time"]

1. d4 {[%clk 0:03:00.9]} 1... Nf6 {[%clk 0:02:59.6]} 2. Nf3 {[%clk 0:03:01]}
2... e6 {[%clk 0:02:59.7]} 3. c4 {[%clk 0:03:00.4]} 3... Bb4+ {[%clk 0:02:59]}
4. Nc3 {[%clk 0:03:00.8]} 4... c5 {[%clk 0:02:58]} 5. d5 {[%clk 0:03:00.1]} 5...
exd5 {[%clk 0:02:57.6]} 6. cxd5 {[%clk 0:03:01]} 6... d6 {[%clk 0:02:58.2]} 7.
Bg5 {[%clk 0:02:56.3]} 7... Nbd7 {[%clk 0:02:56]} 8. a3 {[%clk 0:02:50.9]} 8...
Bxc3+ {[%clk 0:02:55.2]} 9. bxc3 {[%clk 0:02:51.8]} 9... Qa5 {[%clk 0:02:55.4]}
10. Qd3 {[%clk 0:02:32.2]} 10... O-O {[%clk 0:02:49]} 11. Bd2 {[%clk 0:02:27]}
11... c4 {[%clk 0:02:49.1]} 12. Qxc4 {[%clk 0:02:26.3]} 12... Re8 {[%clk
0:02:10.4]} 13. e3 {[%clk 0:02:12.1]} 13... Nb6 {[%clk 0:02:04.6]} 14. Qb4
{[%clk 0:02:06.2]} 14... Qxd5 {[%clk 0:02:01.4]} 15. c4 {[%clk 0:02:03.1]} 15...
Qc5 {[%clk 0:01:53.4]} 16. Bc3 {[%clk 0:01:48.5]} 16... Bg4 {[%clk 0:01:36.2]}
17. Bxf6 {[%clk 0:01:39.2]} 17... gxf6 {[%clk 0:01:35.4]} 18. Be2 {[%clk
0:01:35.3]} 18... Qxb4+ {[%clk 0:01:18.9]} 19. axb4 {[%clk 0:01:33.7]} 19...
Rec8 {[%clk 0:01:19.5]} 20. Rc1 {[%clk 0:01:24.1]} 20... a5 {[%clk 0:01:18.9]}
21. b5 {[%clk 0:01:15.8]} 21... Bxf3 {[%clk 0:01:09.7]} 22. Bxf3 {[%clk
0:01:01.7]} 22... Rc7 {[%clk 0:00:54.9]} 23. Ke2 {[%clk 0:00:51.5]} 23... Rac8
{[%clk 0:00:51.7]} 24. Rhd1 {[%clk 0:00:38.7]} 24... Nxc4 {[%clk 0:00:50.7]} 25.
Rd4 {[%clk 0:00:38.8]} 25... Kf8 {[%clk 0:00:46.2]} 26. Bxb7 {[%clk 0:00:37.4]}
26... Rxb7 {[%clk 0:00:46.5]} 27. Rdxc4 {[%clk 0:00:37.5]} 27... Rxc4 {[%clk
0:00:46.7]} 28. Rxc4 {[%clk 0:00:38.4]} 28... Rxb5 {[%clk 0:00:47.3]} 29. Rc8+
{[%clk 0:00:38.3]} 29... Ke7 {[%clk 0:00:46.5]} 30. Ra8 {[%clk 0:00:37]} 30...
f5 {[%clk 0:00:43.5]} 31. Kf3 {[%clk 0:00:31.1]} 31... Ke6 {[%clk 0:00:42.5]}
32. h4 {[%clk 0:00:31]} 32... Kf6 {[%clk 0:00:32.9]} 33. Ra6 {[%clk 0:00:30.2]}
33... Ke5 {[%clk 0:00:31.7]} 34. Ra8 {[%clk 0:00:29.5]} 34... Ke6 {[%clk
0:00:31.5]} 35. Ra7 {[%clk 0:00:25.6]} 35... h6 {[%clk 0:00:30.2]} 36. Ra8
{[%clk 0:00:24.1]} 36... Re5 {[%clk 0:00:28.1]} 37. g3 {[%clk 0:00:17.6]} 37...
Rc5 {[%clk 0:00:27.5]} 38. Rh8 {[%clk 0:00:16.3]} 38... a4 {[%clk 0:00:26.7]}
39. Ra8 {[%clk 0:00:09.2]} 39... Rc4 {[%clk 0:00:26.5]} 40. Ra5 {[%clk
0:00:09.3]} 40... Rb4 {[%clk 0:00:26]} 41. Ke2 {[%clk 0:00:04.5]} 41... Ke7
{[%clk 0:00:24.2]} 42. Kd3 {[%clk 0:00:04.6]} 42... Rb2 {[%clk 0:00:23.8]} 43.
f3 {[%clk 0:00:04.3]} 43... Rg2 {[%clk 0:00:22.7]} 44. Rxf5 {[%clk 0:00:03.2]}
44... Rxg3 {[%clk 0:00:22.8]} 45. Ke4 {[%clk 0:00:02.5]} 45... Rh3 {[%clk
0:00:22.2]} 46. Ra5 {[%clk 0:00:02.1]} 46... Rxh4+ {[%clk 0:00:22.1]} 47. f4
{[%clk 0:00:03]} 47... Ke6 {[%clk 0:00:13.9]} 48. Rxa4 {[%clk 0:00:03.5]} 48...
Rh5 {[%clk 0:00:14.1]} 49. Ra1 {[%clk 0:00:03.5]} 49... Rb5 {[%clk 0:00:13.9]}
50. Rh1 {[%clk 0:00:03.8]} 50... h5 {[%clk 0:00:14]} 51. Kf3 {[%clk 0:00:03.4]}
51... Kf6 {[%clk 0:00:14.2]} 52. Ra1 {[%clk 0:00:03.7]} 52... Rd5 {[%clk
0:00:11.3]} 53. Ra8 {[%clk 0:00:04.1]} 53... Kg7 {[%clk 0:00:10.9]} 54. Rd8
{[%clk 0:00:04.5]} 54... Rd1 {[%clk 0:00:10.7]} 55. Ke4 {[%clk 0:00:04.8]} 55...
h4 {[%clk 0:00:09.8]} 56. Kf3 {[%clk 0:00:05.2]} 56... Rg1 {[%clk 0:00:09.3]}
57. Rxd6 {[%clk 0:00:04.4]} 57... h3 {[%clk 0:00:09.6]} 58. Rd2 {[%clk
0:00:04.5]} 58... Rh1 {[%clk 0:00:08.2]} 59. Kg3 {[%clk 0:00:03.8]} 59... Kg6
{[%clk 0:00:08.4]} 60. Rd5 {[%clk 0:00:03]} 60... Kf6 {[%clk 0:00:06]} 61. Re5
{[%clk 0:00:02.6]} 61... h2 {[%clk 0:00:04.7]} 62. Kg2 {[%clk 0:00:02.4]} 62...
Rb1 {[%clk 0:00:04]} 63. Kxh2 {[%clk 0:00:02.9]} 63... Rf1 {[%clk 0:00:04.3]}
64. Kg3 {[%clk 0:00:03.8]} 64... Rd1 {[%clk 0:00:04.4]} 65. Kg2 {[%clk
0:00:04.7]} 65... Rd2+ {[%clk 0:00:04.6]} 66. Kf3 {[%clk 0:00:05.6]} 66... Rd1
{[%clk 0:00:05.1]} 67. Ke4 {[%clk 0:00:06.5]} 67... Rb1 {[%clk 0:00:05.1]} 68.
Kf3 {[%clk 0:00:07.4]} 68... Rb4 {[%clk 0:00:04.8]} 69. Kg4 {[%clk 0:00:07.4]}
69... Rc4 {[%clk 0:00:05.2]} 70. Rf5+ {[%clk 0:00:07.8]} 70... Kg7 {[%clk
0:00:05.3]} 71. Rg5+ {[%clk 0:00:08.2]} 71... Kf6 {[%clk 0:00:05.6]} 72. Rf5+
{[%clk 0:00:08.6]} 72... Kg7 {[%clk 0:00:05.9]} 73. Ra5 {[%clk 0:00:09.5]} 73...
Kf6 {[%clk 0:00:05.9]} 74. Kf3 {[%clk 0:00:09.6]} 74... Rb4 {[%clk 0:00:05.7]}
75. Ra6+ {[%clk 0:00:09.9]} 75... Kg7 {[%clk 0:00:05.7]} 76. Kg4 {[%clk
0:00:10.4]} 76... Re4 {[%clk 0:00:05.5]} 77. Ra3 {[%clk 0:00:08.6]} 77... Rb4
{[%clk 0:00:05.6]} 78. Kf5 {[%clk 0:00:08.2]} 78... Rb5+ {[%clk 0:00:05.9]} 79.
Kg4 {[%clk 0:00:08.5]} 79... Rb4 {[%clk 0:00:06.3]} 80. Ra6 {[%clk 0:00:07.4]}
80... Re4 {[%clk 0:00:06.2]} 81. Kf3 {[%clk 0:00:07.7]} 81... Rb4 {[%clk
0:00:06.3]} 82. e4 {[%clk 0:00:08.1]} 82... Rc4 {[%clk 0:00:06]} 83. f5 {[%clk
0:00:07.4]} 83... Rc5 {[%clk 0:00:04.5]} 84. Kf4 {[%clk 0:00:07.7]} 84... Kf8
{[%clk 0:00:04.7]} 85. Kg5 {[%clk 0:00:07.4]} 85... Rb5 {[%clk 0:00:02.9]} 86.
Kf6 {[%clk 0:00:04.9]} 86... Kg8 {[%clk 0:00:03.3]} 87. e5 {[%clk 0:00:04.7]}
87... Kh7 {[%clk 0:00:02.1]} 88. Ra7 {[%clk 0:00:03.9]} 88... Kg8 {[%clk
0:00:02.2]} 89. Rxf7 {[%clk 0:00:02.2]} 89... Rxe5 {[%clk 0:00:02.2]} 0-1

[Event "*** Titled Tuesday Blitz"]
[Site "Chess.com"]
[Date "2020.11.24"]
[Round "6"]
[White "MrTattaglia"]
[Black "Nitzan_Steinberg"]
[Result "0-1"]
[WhiteElo "2824"]
[BlackElo "2879"]
[TimeControl "180+1"]
[EndTime "11:25:12 PST"]
[Termination "Nitzan_Steinberg won by checkmate"]

1. Nf3 {[%clk 0:02:57.5]} 1... d5 {[%clk 0:02:59.8]} 2. g3 {[%clk 0:02:45.4]}
2... g6 {[%clk 0:02:59.9]} 3. Bg2 {[%clk 0:02:45]} 3... Bg7 {[%clk 0:03:00.5]}
4. d4 {[%clk 0:02:42.5]} 4... Nd7 {[%clk 0:03:00.3]} 5. O-O {[%clk 0:02:41.5]}
5... Ngf6 {[%clk 0:03:00.5]} 6. Re1 {[%clk 0:02:37.2]} 6... O-O {[%clk 0:03:00]}
7. Nbd2 {[%clk 0:02:34.7]} 7... c5 {[%clk 0:02:56.2]} 8. e3 {[%clk 0:02:32.7]}
8... b6 {[%clk 0:02:55.3]} 9. c3 {[%clk 0:02:29.6]} 9... Bb7 {[%clk 0:02:54.2]}
10. b3 {[%clk 0:02:05.5]} 10... Re8 {[%clk 0:02:34.7]} 11. Bb2 {[%clk
0:02:02.2]} 11... Rc8 {[%clk 0:02:34.8]} 12. Rc1 {[%clk 0:01:58.7]} 12... e6
{[%clk 0:02:31.1]} 13. c4 {[%clk 0:01:56.8]} 13... Ne4 {[%clk 0:02:23.3]} 14.
Nxe4 {[%clk 0:01:50.8]} 14... dxe4 {[%clk 0:02:24.2]} 15. Nd2 {[%clk 0:01:51.2]}
15... f5 {[%clk 0:02:19.1]} 16. Qc2 {[%clk 0:01:38.8]} 16... cxd4 {[%clk
0:02:03.9]} 17. exd4 {[%clk 0:01:37.1]} 17... Nf6 {[%clk 0:02:04.2]} 18. f3
{[%clk 0:01:35.9]} 18... exf3 {[%clk 0:02:03.7]} 19. Nxf3 {[%clk 0:01:36.8]}
19... Be4 {[%clk 0:01:37.3]} 20. Qe2 {[%clk 0:01:29.7]} 20... Qd7 {[%clk
0:01:28.4]} 21. Rcd1 {[%clk 0:01:28.4]} 21... Qb7 {[%clk 0:01:27.3]} 22. Ng5
{[%clk 0:01:25.3]} 22... Bxg2 {[%clk 0:01:26.6]} 23. Qxg2 {[%clk 0:01:26.2]}
23... Qd7 {[%clk 0:01:20]} 24. Qe2 {[%clk 0:01:22.4]} 24... Rc6 {[%clk
0:01:14.8]} 25. Qf3 {[%clk 0:01:18.5]} 25... Rd6 {[%clk 0:00:58.1]} 26. Qe2
{[%clk 0:01:09.2]} 26... h6 {[%clk 0:00:42.5]} 27. Nf3 {[%clk 0:01:04.5]} 27...
Ne4 {[%clk 0:00:42]} 28. Rd3 {[%clk 0:01:04.7]} 28... Rd8 {[%clk 0:00:39]} 29.
Red1 {[%clk 0:01:03.4]} 29... Qc7 {[%clk 0:00:34.6]} 30. Qe3 {[%clk 0:00:55]}
30... R6d7 {[%clk 0:00:33.3]} 31. Nd2 {[%clk 0:00:45.5]} 31... Qc6 {[%clk
0:00:19.6]} 32. Nxe4 {[%clk 0:00:42.8]} 32... Qxe4 {[%clk 0:00:20.5]} 33. Qf2
{[%clk 0:00:26.5]} 33... Kf7 {[%clk 0:00:15.4]} 34. R3d2 {[%clk 0:00:23.3]}
34... Qb7 {[%clk 0:00:14.3]} 35. Qe3 {[%clk 0:00:20.8]} 35... h5 {[%clk
0:00:14.1]} 36. Re2 {[%clk 0:00:16.8]} 36... Re7 {[%clk 0:00:14.2]} 37. d5
{[%clk 0:00:16.8]} 37... e5 {[%clk 0:00:10.4]} 38. Qf3 {[%clk 0:00:16]} 38...
Qc7 {[%clk 0:00:07]} 39. Rf1 {[%clk 0:00:12.2]} 39... Kg8 {[%clk 0:00:06.5]} 40.
Bc1 {[%clk 0:00:12.2]} 40... e4 {[%clk 0:00:06.6]} 41. Qg2 {[%clk 0:00:11.8]}
41... Bd4+ {[%clk 0:00:06.4]} 42. Kh1 {[%clk 0:00:11.8]} 42... b5 {[%clk
0:00:06.5]} 43. Bg5 {[%clk 0:00:11.9]} 43... bxc4 {[%clk 0:00:05.4]} 44. bxc4
{[%clk 0:00:12.2]} 44... Kg7 {[%clk 0:00:04.2]} 45. Rc2 {[%clk 0:00:09.9]} 45...
Red7 {[%clk 0:00:02.9]} 46. Bxd8 {[%clk 0:00:09.6]} 46... Rxd8 {[%clk
0:00:03.8]} 47. Qd2 {[%clk 0:00:09.8]} 47... Qe5 {[%clk 0:00:03.4]} 48. Qa5
{[%clk 0:00:08.7]} 48... Re8 {[%clk 0:00:03]} 49. Rd1 {[%clk 0:00:07.5]} 49...
e3 {[%clk 0:00:03.1]} 50. Rg2 {[%clk 0:00:04.2]} 50... Bc3 {[%clk 0:00:01.9]}
51. Qb5 {[%clk 0:00:02.2]} 51... Re7 {[%clk 0:00:02.3]} 52. d6 {[%clk
0:00:01.6]} 52... e2 {[%clk 0:00:02.9]} 53. Qxe5+ {[%clk 0:00:02]} 53... Rxe5
{[%clk 0:00:02.7]} 54. Rxe2 {[%clk 0:00:01.8]} 54... Rxe2 {[%clk 0:00:02.4]} 55.
c5 {[%clk 0:00:02.2]} 55... Ba5 {[%clk 0:00:02.5]} 56. c6 {[%clk 0:00:01.8]}
56... Rc2 {[%clk 0:00:03]} 57. c7 {[%clk 0:00:01.9]} 57... Bxc7 {[%clk
0:00:03.3]} 58. dxc7 {[%clk 0:00:02.8]} 58... Rxc7 {[%clk 0:00:04.2]} 59. Rd2
{[%clk 0:00:01.8]} 59... Kh6 {[%clk 0:00:04.6]} 60. Kg2 {[%clk 0:00:01.7]} 60...
Kg5 {[%clk 0:00:04.8]} 61. Kf3 {[%clk 0:00:01.6]} 61... Rc3+ {[%clk 0:00:04.3]}
62. Kg2 {[%clk 0:00:02.5]} 62... Ra3 {[%clk 0:00:05.2]} 63. Rc2 {[%clk
0:00:01.8]} 63... a5 {[%clk 0:00:05.7]} 64. Kh3 {[%clk 0:00:01.8]} 64... h4
{[%clk 0:00:05.7]} 65. Kg2 {[%clk 0:00:02]} 65... hxg3 {[%clk 0:00:06]} 66. hxg3
{[%clk 0:00:02.9]} 66... a4 {[%clk 0:00:06.5]} 67. Kh2 {[%clk 0:00:02.5]} 67...
Kg4 {[%clk 0:00:07]} 68. Rg2 {[%clk 0:00:02.5]} 68... g5 {[%clk 0:00:07]} 69.
Re2 {[%clk 0:00:01.1]} 69... Rxg3 {[%clk 0:00:07.1]} 70. Rd2 {[%clk 0:00:01.2]}
70... f4 {[%clk 0:00:07.5]} 71. Rd4 {[%clk 0:00:01]} 71... Ra3 {[%clk
0:00:08.1]} 72. Rd2 {[%clk 0:00:01.9]} 72... f3 {[%clk 0:00:08.5]} 73. Rd4+
{[%clk 0:00:01.4]} 73... Kf5 {[%clk 0:00:08.9]} 74. Kg3 {[%clk 0:00:02.3]} 74...
g4 {[%clk 0:00:09.2]} 75. Rf4+ {[%clk 0:00:01.7]} 75... Ke5 {[%clk 0:00:09.3]}
76. Kxg4 {[%clk 0:00:02]} 76... Rxa2 {[%clk 0:00:08.9]} 77. Rxf3 {[%clk
0:00:02.4]} 77... Ke4 {[%clk 0:00:06.4]} 78. Rc3 {[%clk 0:00:01.5]} 78... Kd4
{[%clk 0:00:06.5]} 79. Rc8 {[%clk 0:00:01.1]} 79... a3 {[%clk 0:00:06.9]} 80.
Kf4 {[%clk 0:00:02]} 80... Rf2+ {[%clk 0:00:07]} 81. Kg3 {[%clk 0:00:01.7]}
81... a2 {[%clk 0:00:07.7]} 82. Kxf2 {[%clk 0:00:01.3]} 82... a1=Q {[%clk
0:00:07.8]} 83. Re8 {[%clk 0:00:01.7]} 83... Qa2+ {[%clk 0:00:07]} 84. Re2
{[%clk 0:00:01.9]} 84... Qf7+ {[%clk 0:00:06.8]} 85. Ke1 {[%clk 0:00:02.1]}
85... Kd3 {[%clk 0:00:07.3]} 86. Rd2+ {[%clk 0:00:01.9]} 86... Kc3 {[%clk
0:00:07.4]} 87. Rf2 {[%clk 0:00:01.7]} 87... Qe6+ {[%clk 0:00:07.1]} 88. Re2
{[%clk 0:00:01.6]} 88... Qg4 {[%clk 0:00:07.5]} 89. Kf2 {[%clk 0:00:02.5]} 89...
Qf4+ {[%clk 0:00:07.6]} 90. Ke1 {[%clk 0:00:02.2]} 90... Kd3 {[%clk 0:00:08.1]}
91. Rg2 {[%clk 0:00:01.5]} 91... Qe3+ {[%clk 0:00:06.4]} 92. Kf1 {[%clk
0:00:01.7]} 92... Qf3+ {[%clk 0:00:06.1]} 93. Rf2 {[%clk 0:00:01.1]} 93... Qh1#
{[%clk 0:00:06.1]} 0-1

[Event "*** Titled Tuesday Blitz"]
[Site "Chess.com"]
[Date "2020.11.24"]
[Round "6"]
[White "Sacbutt"]
[Black "ChessWarrior3"]
[Result "1/2-1/2"]
[WhiteElo "2288"]
[BlackElo "2088"]
[TimeControl "180+1"]
[EndTime "11:25:33 PST"]
[Termination "Game drawn by 50-move rule"]

1. d4 {[%clk 0:03:00.9]} 1... Nf6 {[%clk 0:02:57.8]} 2. c4 {[%clk 0:03:01.3]}
2... g6 {[%clk 0:02:57.9]} 3. Nc3 {[%clk 0:03:01.3]} 3... d5 {[%clk 0:02:54.8]}
4. cxd5 {[%clk 0:03:02.2]} 4... Nxd5 {[%clk 0:02:55.3]} 5. e4 {[%clk 0:03:02.7]}
5... Nxc3 {[%clk 0:02:54.2]} 6. bxc3 {[%clk 0:03:03.6]} 6... Bg7 {[%clk
0:02:52.2]} 7. Nf3 {[%clk 0:03:04.2]} 7... c5 {[%clk 0:02:49.2]} 8. Rb1 {[%clk
0:03:04.6]} 8... O-O {[%clk 0:02:46.4]} 9. Be2 {[%clk 0:03:03.9]} 9... cxd4
{[%clk 0:02:32.6]} 10. cxd4 {[%clk 0:03:03.4]} 10... Qa5+ {[%clk 0:02:23.3]} 11.
Bd2 {[%clk 0:03:03.3]} 11... Qxa2 {[%clk 0:02:12.4]} 12. O-O {[%clk 0:03:03.3]}
12... b6 {[%clk 0:02:09.8]} 13. Bb4 {[%clk 0:02:58.8]} 13... Nc6 {[%clk
0:02:05.6]} 14. Ra1 {[%clk 0:02:49.8]} 14... Qe6 {[%clk 0:02:01.7]} 15. d5
{[%clk 0:02:47.3]} 15... Qxe4 {[%clk 0:01:59.1]} 16. dxc6 {[%clk 0:02:31.7]}
16... Bxa1 {[%clk 0:01:52.6]} 17. Qxa1 {[%clk 0:02:17.4]} 17... Qxb4 {[%clk
0:01:50.4]} 18. Ne5 {[%clk 0:02:14.4]} 18... Bf5 {[%clk 0:01:48.5]} 19. Bc4
{[%clk 0:02:07.7]} 19... a5 {[%clk 0:01:41.3]} 20. Rc1 {[%clk 0:02:01.2]} 20...
b5 {[%clk 0:01:34.1]} 21. Bd5 {[%clk 0:01:34.9]} 21... e6 {[%clk 0:01:26.6]} 22.
Bf3 {[%clk 0:01:30.2]} 22... a4 {[%clk 0:01:18.3]} 23. Nd7 {[%clk 0:01:26.6]}
23... Rfe8 {[%clk 0:01:09.5]} 24. c7 {[%clk 0:01:25.5]} 24... e5 {[%clk
0:01:03.1]} 25. Nf6+ {[%clk 0:01:21.2]} 25... Kg7 {[%clk 0:01:00.3]} 26. Nxe8+
{[%clk 0:01:20.7]} 26... Rxe8 {[%clk 0:01:01.2]} 27. Bb7 {[%clk 0:01:19.1]}
27... Bc8 {[%clk 0:00:45.9]} 28. Bxc8 {[%clk 0:01:17.4]} 28... Rxc8 {[%clk
0:00:46.8]} 29. Qxe5+ {[%clk 0:01:17.2]} 29... Kg8 {[%clk 0:00:42.8]} 30. Qd5
{[%clk 0:01:15.8]} 30... a3 {[%clk 0:00:39.7]} 31. Qd8+ {[%clk 0:01:14.7]} 31...
Qf8 {[%clk 0:00:38.8]} 32. Qd5 {[%clk 0:01:09.3]} 32... b4 {[%clk 0:00:37.9]}
33. h4 {[%clk 0:01:05.7]} 33... Kg7 {[%clk 0:00:31.1]} 34. h5 {[%clk 0:01:02.7]}
34... h6 {[%clk 0:00:30.6]} 35. hxg6 {[%clk 0:01:01.7]} 35... fxg6 {[%clk
0:00:31.5]} 36. Qe6 {[%clk 0:00:48]} 36... Re8 {[%clk 0:00:23.9]} 37. Qd7+
{[%clk 0:00:38.3]} 37... Qf7 {[%clk 0:00:22.8]} 38. Qd4+ {[%clk 0:00:36]} 38...
Qf6 {[%clk 0:00:21.1]} 39. Qxb4 {[%clk 0:00:34.2]} 39... a2 {[%clk 0:00:21.5]}
40. Qa4 {[%clk 0:00:29]} 40... Qe6 {[%clk 0:00:19.3]} 41. Ra1 {[%clk 0:00:23.7]}
41... Rc8 {[%clk 0:00:16.1]} 42. Rxa2 {[%clk 0:00:20.5]} 42... Rxc7 {[%clk
0:00:15]} 43. Qd4+ {[%clk 0:00:20.1]} 43... Qf6 {[%clk 0:00:14.2]} 44. Qxf6+
{[%clk 0:00:19.2]} 44... Kxf6 {[%clk 0:00:14.4]} 45. Ra6+ {[%clk 0:00:19]} 45...
Kg5 {[%clk 0:00:14.6]} 46. Kh2 {[%clk 0:00:19.9]} 46... Rc5 {[%clk 0:00:13.9]}
47. f3 {[%clk 0:00:19.9]} 47... h5 {[%clk 0:00:12]} 48. Rd6 {[%clk 0:00:20.3]}
48... h4 {[%clk 0:00:12.2]} 49. Kh3 {[%clk 0:00:20.4]} 49... Kh5 {[%clk
0:00:12.3]} 50. Rd4 {[%clk 0:00:20.6]} 50... g5 {[%clk 0:00:12.3]} 51. Rd8
{[%clk 0:00:20.5]} 51... Rc1 {[%clk 0:00:12.7]} 52. Rh8+ {[%clk 0:00:20.5]}
52... Kg6 {[%clk 0:00:13]} 53. Rg8+ {[%clk 0:00:20.8]} 53... Kh6 {[%clk
0:00:13.2]} 54. Kg4 {[%clk 0:00:20.4]} 54... Rc4+ {[%clk 0:00:12.8]} 55. Kf5
{[%clk 0:00:19.8]} 55... Rf4+ {[%clk 0:00:13]} 56. Ke5 {[%clk 0:00:20.1]} 56...
Kh5 {[%clk 0:00:10]} 57. Rg7 {[%clk 0:00:18.2]} 57... Ra4 {[%clk 0:00:08.1]} 58.
Rd7 {[%clk 0:00:12.8]} 58... Ra2 {[%clk 0:00:07.4]} 59. f4 {[%clk 0:00:08.9]}
59... gxf4 {[%clk 0:00:05.4]} 60. Kxf4 {[%clk 0:00:09]} 60... Rxg2 {[%clk
0:00:04.7]} 61. Rh7+ {[%clk 0:00:08.7]} 61... Kg6 {[%clk 0:00:04.1]} 62. Rxh4
{[%clk 0:00:09.2]} 62... Rg5 {[%clk 0:00:03.9]} 63. Rh8 {[%clk 0:00:06.9]} 63...
Rf5+ {[%clk 0:00:04.3]} 64. Ke4 {[%clk 0:00:06.6]} 64... Rf7 {[%clk 0:00:04.6]}
65. Ra8 {[%clk 0:00:06.8]} 65... Rf6 {[%clk 0:00:04.6]} 66. Ra3 {[%clk
0:00:07.2]} 66... Rf5 {[%clk 0:00:04.4]} 67. Rg3+ {[%clk 0:00:07.6]} 67... Rg5
{[%clk 0:00:04.4]} 68. Rd3 {[%clk 0:00:08.5]} 68... Rf5 {[%clk 0:00:04.4]} 69.
Rd6+ {[%clk 0:00:09]} 69... Rf6 {[%clk 0:00:04.7]} 70. Rd4 {[%clk 0:00:09.9]}
70... Rf5 {[%clk 0:00:04.6]} 71. Rd6+ {[%clk 0:00:10.2]} 71... Rf6 {[%clk
0:00:04.8]} 72. Rd8 {[%clk 0:00:11.1]} 72... Rf7 {[%clk 0:00:04.9]} 73. Rg8+
{[%clk 0:00:11.5]} 73... Rg7 {[%clk 0:00:05.2]} 74. Re8 {[%clk 0:00:12.4]} 74...
Rf7 {[%clk 0:00:05.6]} 75. Re5 {[%clk 0:00:13.1]} 75... Rf6 {[%clk 0:00:04.8]}
76. Rd5 {[%clk 0:00:12.1]} 76... Re6+ {[%clk 0:00:04.7]} 77. Kf4 {[%clk
0:00:12.3]} 77... Rf6+ {[%clk 0:00:05.2]} 78. Kg4 {[%clk 0:00:12.9]} 78... Re6
{[%clk 0:00:05.8]} 79. Rd7 {[%clk 0:00:13.1]} 79... Re4+ {[%clk 0:00:05.8]} 80.
Kf3 {[%clk 0:00:13.2]} 80... Ra4 {[%clk 0:00:06]} 81. Rd6+ {[%clk 0:00:13.3]}
81... Kg5 {[%clk 0:00:06.3]} 82. Rd5+ {[%clk 0:00:14]} 82... Kf6 {[%clk
0:00:06.1]} 83. Rb5 {[%clk 0:00:14.3]} 83... Ra3+ {[%clk 0:00:05.7]} 84. Ke4
{[%clk 0:00:14.4]} 84... Ra4+ {[%clk 0:00:06.2]} 85. Kd5 {[%clk 0:00:14.9]}
85... Rf4 {[%clk 0:00:05.9]} 86. Rb6+ {[%clk 0:00:14.9]} 86... Ke7 {[%clk
0:00:05.5]} 87. Ke5 {[%clk 0:00:14.1]} 87... Rf1 {[%clk 0:00:05.3]} 88. Rb7+
{[%clk 0:00:14.5]} 88... Kd8 {[%clk 0:00:05.7]} 89. Ra7 {[%clk 0:00:14.4]} 89...
Re1+ {[%clk 0:00:06.1]} 90. Kd6 {[%clk 0:00:14.2]} 90... Rd1+ {[%clk 0:00:06.6]}
91. Kc6 {[%clk 0:00:14.3]} 91... Rc1+ {[%clk 0:00:07.1]} 92. Kd5 {[%clk
0:00:14.7]} 92... Rd1+ {[%clk 0:00:06.8]} 93. Ke4 {[%clk 0:00:15.1]} 93... Kc8
{[%clk 0:00:07.3]} 94. Kf3 {[%clk 0:00:16]} 94... Kb8 {[%clk 0:00:07.6]} 95. Ra2
{[%clk 0:00:15.8]} 95... Rd4 {[%clk 0:00:07.5]} 96. Re2 {[%clk 0:00:16]} 96...
Rb4 {[%clk 0:00:07.5]} 97. Re4 {[%clk 0:00:16.9]} 97... Rb7 {[%clk 0:00:06.8]}
98. Kf4 {[%clk 0:00:16.6]} 98... Ka8 {[%clk 0:00:06.8]} 99. Re5 {[%clk
0:00:16.5]} 99... Rh7 {[%clk 0:00:06.8]} 100. Kf5 {[%clk 0:00:17.4]} 100... Rh5+
{[%clk 0:00:07.1]} 101. Ke6 {[%clk 0:00:17.5]} 101... Rh6+ {[%clk 0:00:07.5]}
102. Kd5 {[%clk 0:00:17.5]} 102... Rb6 {[%clk 0:00:08]} 103. Re6 {[%clk
0:00:17.6]} 103... Rb7 {[%clk 0:00:08.2]} 104. Kc6 {[%clk 0:00:17.1]} 104... Rb1
{[%clk 0:00:07.8]} 105. Re8+ {[%clk 0:00:15.8]} 105... Ka7 {[%clk 0:00:06.9]}
106. Re3 {[%clk 0:00:16.4]} 106... Rc1+ {[%clk 0:00:06.8]} 107. Kb5 {[%clk
0:00:16.2]} 107... Rb1+ {[%clk 0:00:07.2]} 108. Kc6 {[%clk 0:00:16.7]} 108...
Rc1+ {[%clk 0:00:07.3]} 109. Kb5 {[%clk 0:00:16.8]} 109... Kb8 {[%clk
0:00:07.2]} 110. Kb6 {[%clk 0:00:16.1]} 110... Rb1+ {[%clk 0:00:07.5]} 111. Ka6
{[%clk 0:00:15.9]} 111... Kc7 {[%clk 0:00:06.9]} 112. Rc3+ {[%clk 0:00:13.7]}
1/2-1/2